Cogmind - Beta 14 *** ADVENTURER MODE // 2024.12.14 @ 06:55:18 Player: Olexender Result: Destroyed by P-80 Master with Gamma Rifle Performance ------------- Evolutions (7) 3500 Regions Visited (10) 2000 Robots Destroyed (111) 555 Value Destroyed (4784) 4784 Prototype IDs (5) 100 Alien Tech Used (0) 0 Bonus (555) 555 TOTAL SCORE: 11494 Bonus ------- High Alert Combat Kills 36 Follower Combat Kills 309 Entered DSFs 500 Friendly Fire -290 Cogmind --------- Core Integrity 0/1300 Matter 275/300 Energy 19/100 System Corruption 17% Temperature Cool (2) Movement Hovering (70) Location -3/Research Parts ------- > --- POWER (2) -------- (None) > --- PROPULSION (8) --- Gyrokinetic Inverter > --- UTILITY (8) ------ Targeting Computer > --- WEAPON (3) ------- (None) > --- INVENTORY (5) ---- Biometal Leg Advanced Cooling System Experimental Energy Well (600) Advanced Weight Redist. System Mining Laser Peak State ------------ > --- POWER ------------ Neutrino Core Hybrid Antimatter Reactor > --- PROPULSION ------- Light Armored Exoskeleton Light Armored Exoskeleton Myomer Leg Myomer Leg Myomer Leg > --- UTILITY ---------- Advanced Cooling System Large Storage Unit Experimental Energy Well Targeting Computer System Shield System Restoration Module Improved Field Recycling Unit > --- WEAPON ----------- KE Penetrator Railgun Hypervelocity Railgun > --- INVENTORY -------- Hybrid Antimatter Reactor Gyrokinetic Inverter Gyrokinetic Inverter Linear Gravjet Combat Gravmag System Combat Gravmag System Improved Antigrav System Power Amplifier Advanced Cooling System Medium Battery Matter Compressor Advanced Weight Redist. System Advanced Weight Redist. System Mining Laser Katana [Rating: 106] Favorites ----------- Power Enhanced Nuclear Core Engine Ion Engine Power Core Enhanced Nuclear Core Reactor Cold Fusion Reactor Propulsion Light Armored Exoskeleton Leg Light Armored Exoskeleton Hover Unit Aerolev Unit Utility Large Storage Unit Device Advanced Weight Redist. System Storage Large Storage Unit Processor Targeting Computer Hackware System Shield Protection Hardened Light Armor Plating Weapon Gauss Rifle Energy Gun Medium Laser Ballistic Gun Gauss Rifle Slashing Weapon Katana Build | -11 -10 -9 -8 -7 -6 -6 -5 -4 -4 -3 ------- Run | Yrd Mat Mat Mat Fac Fac DSF Fac Fac Ext Res Slots Evolved 14 | . . 2 2 2 2 . 2 2 . 2 Power 1 | . . . . 1 . . . . . . Propulsion 6 | . . 1 1 1 1 . . 1 . 1 Utility 6 | . . 1 1 . 1 . 1 1 . 1 Weapon 1 | . . . . . . . 1 . . . Parts Attached 135 | 5 2 19 19 23 . 12 17 9 5 24 Power 17 | 1 . 1 1 5 . 1 3 1 . 4 Engine 4 | 1 . 1 . 1 . . 1 . . . Core 9 | . . . 1 4 . 1 1 . . 2 Reactor 4 | . . . . . . . 1 1 . 2 Propulsion 55 | 2 . 9 12 7 . 6 4 5 1 9 Treads . | . . . . . . . . . . . Leg 25 | 2 . 1 . 6 . 6 4 5 1 . Wheel . | . . . . . . . . . . . Hover 30 | . . 8 12 1 . . . . . 9 Flight . | . . . . . . . . . . . Utility 34 | . 1 6 3 5 . 4 6 1 2 6 Device 22 | . . 2 1 5 . 3 3 1 2 5 Storage 5 | . 1 2 1 . . . . . . 1 Processor 2 | . . 1 . . . . 1 . . . Hackware 1 | . . . . . . . 1 . . . Protection 4 | . . 1 1 . . 1 1 . . . Artifact . | . . . . . . . . . . . Weapon 29 | 2 1 3 3 6 . 1 4 2 2 5 Energy Gun 2 | 1 . 1 . . . . . . . . Energy Cannon . | . . . . . . . . . . . Ballistic Gun 25 | 1 1 2 3 6 . 1 4 2 2 3 Ballistic Cannon . | . . . . . . . . . . . Launcher . | . . . . . . . . . . . Special Weapon . | . . . . . . . . . . . Impact Weapon . | . . . . . . . . . . . Slashing Weapon 2 | . . . . . . . . . . 2 Piercing Weapon . | . . . . . . . . . . . Special Melee Weapon . | . . . . . . . . . . . Unidentified Prototypes 5 | . . . 1 2 . . 1 . . 1 Parts Lost 51 | . . . 2 6 . 7 3 1 1 31 Power 8 | . . . . 1 . 1 . 1 . 5 Propulsion 18 | . . . . 3 . 4 . . . 11 Utility 14 | . . . . 1 . 1 1 . 1 10 Weapon 11 | . . . 2 1 . 1 2 . . 5 Highest Loss Streak 17 | . . . 1 3 . 4 2 1 1 17 To Critical Strikes 1 | . . . . . . . . . . 1 Average Slot Usage (%) 82 | . 77 79 96 91 80 73 81 86 88 67 Engine 2 | . 14 11 1 1 . . 1 . . . Core 5 | . . . 7 13 13 12 9 1 . 2 Reactor 2 | . . . . . . . . 8 10 2 Leg 15 | . 28 5 . 9 26 18 23 26 26 14 Hover 12 | . . 27 36 24 . . . . . 8 Device 13 | . . 4 15 18 20 18 16 13 14 12 Storage 6 | . 6 11 9 7 6 6 5 5 5 3 Processor 1 | . . . . . . . . 5 5 4 Hackware 1 | . . . . . . . 4 5 5 2 Protection 2 | . . 2 9 . . 3 5 5 5 . Energy Gun 1 | . 14 2 . . . . . . . . Ballistic Gun 13 | . 14 14 17 15 13 12 11 15 14 10 Peak Build Rating 106 | 5 6 22 35 46 42 58 77 97 97 106 Average Rating 53 | 3 5 14 31 41 42 42 63 89 96 83 On Entrance 43 | . 5 6 22 35 42 42 58 77 97 97 Naked Turns . | . . . . . . . . . . . Heaviest Build 86 | 8 19 28 38 49 49 60 73 86 86 85 Greatest Support 135 | 20 20 33 41 64 64 129 100 135 135 135 Greatest Overweight (x) 6 | . . 1 1 2 . 4 . . . 6 Average Overweight (x) . | . . . . . . . . . . . Largest Inventory Capacity 15 | 5 10 10 15 15 15 15 15 15 15 15 Average Capacity 13 | 5 7 10 14 15 15 15 15 15 15 14 Most Carried 15 | 5 4 10 13 15 15 15 15 15 15 15 Average Carried 12 | 1 1 8 10 13 15 14 14 14 14 12 Final Capacity 15 | 5 10 10 15 15 15 15 15 15 15 5 Final Carried 15 | 1 3 10 12 15 15 15 15 15 15 5 Class Distribution -------------------- 52% | Mutant 15% | Scavenger-Tank 13% | Scavenger-Gunner 10% | Hacker-Mutant 7% | Scavenger-Mutant Dominant Class ---------------- Mutant | -10/Materials Mutant | -9/Materials Mutant | -8/Materials Mutant | -7/Factory Mutant | -6/Factory Mutant | -6/DSF Hacker-Mutant | -5/Factory Scavenger-Tank | -4/Factory Scavenger-Tank | -4/Extension Scavenger-Gunner | -3/Research Resources | -11 -10 -9 -8 -7 -6 -6 -5 -4 -4 -3 ----------- Run | Yrd Mat Mat Mat Fac Fac DSF Fac Fac Ext Res Matter Collected 4737 | 254 30 740 668 473 . 362 384 567 554 705 Remotely . | . . . . . . . . . . . Salvage Created 5696 | 65 242 705 797 558 . 521 390 665 621 1132 Parts 357 | 4 22 59 59 32 . 27 24 37 39 54 Haulers Intercepted 2 | . 2 . . . . . . . . . Recyclers Shooed 6 | 1 . . 1 . . . 1 . . 3 Parts Field Recycled . | . . . . . . . . . . . Retrieved Matter . | . . . . . . . . . . . Parts Self-Destructed . | . . . . . . . . . . . Prevented . | . . . . . . . . . . . Kills | -11 -10 -9 -8 -7 -6 -6 -5 -4 -4 -3 ------- Run | Yrd Mat Mat Mat Fac Fac DSF Fac Fac Ext Res Combat Hostiles Destroyed 88 | . 5 15 16 13 . 8 6 8 6 11 Guns 88 | . 5 15 16 13 . 8 6 8 6 11 Classes Destroyed 16 | 2 4 2 3 1 . 2 1 . 1 . Worker 2 | . . . . 1 . . 1 . . . Builder 4 | . . . 1 . . . . 1 1 1 Tunneler 1 | 1 . . . . . . . . . . Hauler 2 | . 2 . . . . . . . . . Recycler 4 | 1 . . . 1 . . . . 1 1 Operator 2 | . . . 1 . . . . 1 . . Watcher 8 | . 1 2 2 . . . 1 . . 2 Swarmer 18 | . 3 3 4 8 . . . . . . Grunt 27 | . 2 2 6 3 . 3 . 6 2 3 Brawler 3 | . . 1 . . . . . . . 2 Sentry 21 | . . 9 5 2 . 1 1 . 3 . Specialist 1 | . . . . . . 1 . . . . Hunter 7 | . . . 1 . . 2 2 2 . . Programmer 9 | . . . . . . . 3 . . 6 Heavy 1 | . . . . . . 1 . . . . Behemoth 1 | . . . . . . . . . 1 . Best Kill Streak 7 | 2 2 7 7 5 . 4 2 7 2 3 Combat Bots Only 6 | . 2 5 6 5 . 4 2 6 1 3 Max Kills in Single Turn 2 | 1 1 1 2 2 . 1 1 2 2 2 Gunslinging 1 | . . . 1 1 . . . . . . Exploded . | . . . . . . . . . . . Melee . | . . . . . . . . . . . Uniques/NPCs Destroyed . | . . . . . . . . . . . Combat | -11 -10 -9 -8 -7 -6 -6 -5 -4 -4 -3 -------- Run | Yrd Mat Mat Mat Fac Fac DSF Fac Fac Ext Res Hostile Shots Fired 1053 | . 16 79 80 143 . 103 108 94 27 403 Missed 320 | . 1 33 28 42 . 31 32 23 12 118 Damage Taken 10011 | . 106 499 457 954 . 1089 936 774 187 5009 Core 1894 | . 29 135 52 137 . 149 35 52 . 1305 Absorbed by Shields 584 | . . . . . . . 226 294 64 . Ignored by Resistances 3007 | . 33 137 142 287 . 306 332 313 72 1385 Core Remaining (%) 87 | 100 88 66 90 80 . 82 96 . 95 . Volleys Fired 384 | 4 20 63 57 44 . 39 40 28 23 66 Largest 3 | 2 2 2 2 2 . 2 2 3 3 3 Hottest 108 | 70 70 76 51 51 . 53 56 89 91 108 Shots Fired 767 | 8 37 88 112 87 . 78 73 84 69 131 Gun 767 | 8 37 88 112 87 . 78 73 84 69 131 Cannon . | . . . . . . . . . . . Launcher . | . . . . . . . . . . . Special . | . . . . . . . . . . . Kinetic 736 | 4 20 78 112 87 . 78 73 84 69 131 Thermal 31 | 4 17 10 . . . . . . . . Explosive . | . . . . . . . . . . . Electromagnetic . | . . . . . . . . . . . Robot Hit Streak 40 | 7 8 14 35 16 . 18 15 17 24 40 Robot Miss Streak 7 | . 3 2 3 3 . 2 7 3 1 2 Penetration Max 2 | . . . 1 1 . 1 1 1 2 1 Secondary Targets 17 | . 1 . 3 2 . 3 2 4 1 1 Max Gunslinging Chain 1 | . 1 . 1 1 . 1 1 1 1 1 Shots Hit Robots 592 | 7 22 68 79 65 . 65 51 64 48 123 Core Hits 257 | 3 14 29 37 28 . 25 18 33 24 46 Critical Kills 12 | . . . 2 1 . . 1 1 . 7 Critical Parts Destroyed 13 | . . . . 2 . 1 1 2 2 5 Critical Strikes 33 | . . 2 2 4 . 1 2 3 3 16 Burn 2 | . . 2 . . . . . . . . Destroy 29 | . . . 2 4 . 1 2 3 3 14 Sever 2 | . . . . . . . . . . 2 Melee Attacks 13 | . . . . . . . . . . 13 Impact . | . . . . . . . . . . . Slashing 13 | . . . . . . . . . . 13 Piercing . | . . . . . . . . . . . Sneak Attacks . | . . . . . . . . . . . Combat Hostiles . | . . . . . . . . . . . Follow-up Attacks . | . . . . . . . . . . . Damage Inflicted 12174 | 70 236 1017 1329 1421 . 1290 1166 1398 1102 3145 Guns 11354 | 70 236 1008 1329 1076 . 1290 1166 1398 1102 2679 Cannons . | . . . . . . . . . . . Explosions 345 | . . . . 345 . . . . . . Melee 416 | . . . . . . . . . . 416 Ramming 59 | . . 9 . . . . . . . 50 Kinetic 11078 | 32 97 909 1329 1076 . 1290 1166 1398 1102 2679 Thermal 276 | 38 139 99 . . . . . . . . Explosive 345 | . . . . 345 . . . . . . Electromagnetic . | . . . . . . . . . . . Impact . | . . . . . . . . . . . Slashing 416 | . . . . . . . . . . 416 Piercing . | . . . . . . . . . . . Highest Corruption 17 | . . . . . . . 2 . . 17 Average Corruption 6 | . . . . . . . 1 . . 11 Corruption Purged 3 | . . . . . . . . . . 3 Corruption Blocked . | . . . . . . . . . . . Effects 18 | . . . . . . . 4 . . 14 Message Errors 4 | . . . . . . . 1 . . 3 Matter Fused 1 | . . . . . . . . . . 1 Heat Flow Errors 3 | . . . . . . . . . . 3 Energy Discharges 1 | . . . . . . . . . . 1 Parts Rejected 1 | . . . . . . . 1 . . . Data Loss (minor) 3 | . . . . . . . . . . 3 Data Loss (major) 1 | . . . . . . . 1 . . . Misfires 1 | . . . . . . . 1 . . . Misdirections 2 | . . . . . . . . . . 2 Weapon Failures 1 | . . . . . . . . . . 1 Overload Shots . | . . . . . . . . . . . Overflow Damage 10 | . . . . 10 . . . . . . Projectiles . | . . . . . . . . . . . Explosions 10 | . . . . 10 . . . . . . Melee . | . . . . . . . . . . . Knockbacks 1 | . . . . . . . . . . 1 Impact 1 | . . . . . . . . . . 1 Kinetic . | . . . . . . . . . . . Secondary . | . . . . . . . . . . . Self-Inflicted Damage 45 | . . 4 . 29 . . . . . 12 Shots 1 | . . . . 1 . . . . . . Rammed 5 | . . 2 . . . . . . . 3 Targets Rammed 7 | . . 2 . . . . . . . 5 Kicked 2 | . . . . . . . . . . 2 Crushed . | . . . . . . . . . . . Highest Temperature 230 | 60 130 78 170 . . 163 . 5 . 230 Average Temperature 45 | 30 49 25 58 . . 72 . 5 . 84 Received Heat Transfer 1802 | . 30 210 225 108 . 291 24 200 21 693 Siege Activations . | . . . . . . . . . . . Robots Corrupted . | . . . . . . . . . . . Combat Hostiles . | . . . . . . . . . . . Parts Fried . | . . . . . . . . . . . Impact Corruptions . | . . . . . . . . . . . Robots Melted . | . . . . . . . . . . . Combat Hostiles . | . . . . . . . . . . . Parts Melted 4 | . 1 2 1 . . . . . . . Heat Transferred 925 | 111 407 407 . . . . . . . . Parts Sabotaged . | . . . . . . . . . . . Parts Stolen . | . . . . . . . . . . . Parts Stripped . | . . . . . . . . . . . Power Chain Reactions . | . . . . . . . . . . . Alert | -11 -10 -9 -8 -7 -6 -6 -5 -4 -4 -3 ------- Run | Yrd Mat Mat Mat Fac Fac DSF Fac Fac Ext Res Peak Influence 486 | 10 174 486 397 238 66 188 132 387 379 341 Initial 163 | . 5 62 126 105 62 39 85 55 163 116 Average 177 | 4 106 271 246 126 62 149 79 271 267 169 Maximum Alert Level 2 | . . 2 1 1 . . . 1 1 1 Low Security (%) 63 | 100 100 26 42 83 100 100 100 30 19 56 Level 1 36 | . . 65 57 16 . . . 69 80 43 Level 2 . | . . 7 . . . . . . . . Level 3 . | . . . . . . . . . . . Level 4 . | . . . . . . . . . . . Level 5 . | . . . . . . . . . . . High Security . | . . . . . . . . . . . Max Security . | . . . . . . . . . . . Sterilizations 1 | . . . . . . 1 . . . . Squads Dispatched 20 | . . . 5 7 . 1 3 2 . 2 Investigation 4 | . . . 1 1 . . 1 1 . . Extermination 4 | . . . . 1 . . 1 . . 2 Reinforcement 8 | . . . 3 2 . 1 1 1 . . Assault . | . . . . . . . . . . . Garrison 4 | . . . 1 3 . . . . . . Intercept . | . . . . . . . . . . . Searches Triggered . | . . . . . . . . . . . Construction Impeded 2 | . . . 1 . . . 1 . . . Haulers Reinforced 1 | . . . . . . . . 1 . . Active Scanning Responses . | . . . . . . . . . . . Cargo Convoy Interrupts 1 | . . . . . . . . . . 1 Stealth | -11 -10 -9 -8 -7 -6 -6 -5 -4 -4 -3 --------- Run | Yrd Mat Mat Mat Fac Fac DSF Fac Fac Ext Res Distress Signals 11 | . . 1 1 . . . 2 . 2 5 Communications Jammed . | . . . . . . . . . . . Distress Signals . | . . . . . . . . . . . Times Spotted 154 | . 6 24 27 27 . 9 10 8 13 30 Peak Tracking Total 11 | . 3 7 4 3 . 6 3 4 5 11 Tactical Retreats 4 | . 1 1 . . . 1 . . 1 . Traps | -11 -10 -9 -8 -7 -6 -6 -5 -4 -4 -3 ------- Run | Yrd Mat Mat Mat Fac Fac DSF Fac Fac Ext Res Traps Triggered 10 | . . . . 3 . 1 2 1 2 1 Indirectly . | . . . . . . . . . . . Trap Hack Attempts . | . . . . . . . . . . . Triggered . | . . . . . . . . . . . Disarmed 3 | . . . 3 . . . . . . . Reprogrammed 3 | . 3 . . . . . . . . . Reused . | . . . . . . . . . . . Traps Extracted . | . . . . . . . . . . . Installed . | . . . . . . . . . . . Triggered 1 | . . . . . . . . . . 1 Machines | -11 -10 -9 -8 -7 -6 -6 -5 -4 -4 -3 ---------- Run | Yrd Mat Mat Mat Fac Fac DSF Fac Fac Ext Res Machines Disabled 9 | . . . 1 1 . 1 . 4 2 . Max in Single Turn 2 | . . . 1 1 . 1 . 2 . . Garrison Access 1 | . . . 1 . . . . . . . Machines Repaired . | . . . . . . . . . . . Machines Dismantled . | . . . . . . . . . . . Machines Sabotaged . | . . . . . . . . . . . Overloaded Fab Kills . | . . . . . . . . . . . Hacking | -11 -10 -9 -8 -7 -6 -6 -5 -4 -4 -3 --------- Run | Yrd Mat Mat Mat Fac Fac DSF Fac Fac Ext Res Machines Accessed 48 | . 6 7 8 8 1 . 4 4 7 3 Terminals 35 | . 5 6 5 5 1 . 2 3 7 1 Fabricators 4 | . . . . 1 . . . 1 . 2 Repair Stations . | . . . . . . . . . . . Recycling Units 4 | . 1 . 2 . . . 1 . . . Scanalyzers 4 | . . 1 . 2 . . 1 . . . Garrison Access 1 | . . . 1 . . . . . . . Total Hacks 115 | . 19 19 15 23 1 . 6 9 18 5 Successful 61 | . 9 14 9 13 1 . 3 4 8 . Failed 54 | . 10 5 6 10 . . 3 5 10 5 Catastrophic 8 | . 1 1 . 3 . . . . 2 1 Database Lockouts . | . . . . . . . . . . . Manual . | . . . . . . . . . . . Terminals 94 | . 17 16 12 17 1 . 3 8 18 2 Fabricators 5 | . . . . 1 . . . 1 . 3 Repair Stations . | . . . . . . . . . . . Recycling Units 6 | . 2 . 2 . . . 2 . . . Scanalyzers 9 | . . 3 . 5 . . 1 . . . Garrison Access 1 | . . . 1 . . . . . . . Terminal Hacks 50 | . 8 12 6 10 1 . 2 3 8 . Record 6 | . 2 2 1 1 . . . . . . Part Schematic 3 | . . . . 2 . . . . 1 . Robot Analysis 1 | . . 1 . . . . . . . . Open Door 6 | . . . . . . . . 1 5 . Open DSF 2 | . . . . . 1 . 1 . . . Emergency Access Points 2 | . . . 1 1 . . . . . . Terminal Index 2 | . 1 . . 1 . . . . . . Fabricator Index 1 | . . . . 1 . . . . . . Unreport Threat 3 | . . 1 1 1 . . . . . . Locate Traps 2 | . 1 1 . . . . . . . . Disarm Traps 1 | . . . 1 . . . . . . . Reprogram Traps 1 | . 1 . . . . . . . . . Dispatch Records 2 | . 2 . . . . . . . . . Maintenance Status 2 | . . . 1 1 . . . . . . Security Status 2 | . . 1 . 1 . . . . . . Surveillance Status 2 | . 1 1 . . . . . . . . Patrol Status 1 | . . 1 . . . . . . . . Transport Status 1 | . . . . 1 . . . . . . Hauler Manifests 1 | . . . 1 . . . . . . . Registered Components 1 | . . 1 . . . . . . . . Zone Layout 8 | . . 3 . . . . 1 2 2 . Fabricator Hacks 2 | . . . . 1 . . . 1 . . Network Status 2 | . . . . 1 . . . 1 . . Repair Station Hacks . | . . . . . . . . . . . Recycling Unit Hacks 4 | . 1 . 2 . . . 1 . . . Report Inventory 4 | . 1 . 2 . . . 1 . . . Scanalyzer 4 | . . 2 . 2 . . . . . . Insert Component 2 | . . 1 . 1 . . . . . . Analyze 2 | . . 1 . 1 . . . . . . Garrison Access Hacks 1 | . . . 1 . . . . . . . Seal Access 1 | . . . 1 . . . . . . . Unauthorized Hacks . | . . . . . . . . . . . Terminals . | . . . . . . . . . . . Fabricators . | . . . . . . . . . . . Repair Stations . | . . . . . . . . . . . Recycling Units . | . . . . . . . . . . . Scanalyzers . | . . . . . . . . . . . Garrison Access . | . . . . . . . . . . . Data Cores Recovered 1 | . . . . . . . . 1 . . Used 1 | . . . . . . . . 1 . . Hacking Detections 33 | . 5 5 4 7 . . 3 2 4 3 Full Trace Events 2 | . . . 1 1 . . . . . . Feedback Events . | . . . . . . . . . . . Feedback Blocked . | . . . . . . . . . . . Robot Schematics Acquired . | . . . . . . . . . . . Robots Built . | . . . . . . . . . . . Authchips . | . . . . . . . . . . . Time . | . . . . . . . . . . . Total Robot Build Rating . | . . . . . . . . . . . Part Schematics Acquired 5 | . . 1 . 3 . . . . 1 . Parts Built . | . . . . . . . . . . . Authchips . | . . . . . . . . . . . Time . | . . . . . . . . . . . Total Part Build Rating . | . . . . . . . . . . . Parts Repaired . | . . . . . . . . . . . Time . | . . . . . . . . . . . Parts Recycled . | . . . . . . . . . . . Recycled Matter . | . . . . . . . . . . . Retrieved Matter . | . . . . . . . . . . . Retrieved Components . | . . . . . . . . . . . Parts Scanalyzed 2 | . . 1 . 1 . . . . . . Part Schematics Acquired 2 | . . 1 . 1 . . . . . . Parts Damaged . | . . . . . . . . . . . Bothacking | -11 -10 -9 -8 -7 -6 -6 -5 -4 -4 -3 ------------ Run | Yrd Mat Mat Mat Fac Fac DSF Fac Fac Ext Res Used RIF Installer . | . . . . . . . . . . . Robots Hacked . | . . . . . . . . . . . Non-combat . | . . . . . . . . . . . Combat . | . . . . . . . . . . . Robot Hacks Applied . | . . . . . . . . . . . Relay Couplers Released . | . . . . . . . . . . . Fabnet Peak Effective % . | . . . . . . . . . . . Robots Rewired . | . . . . . . . . . . . Allies Hacked . | . . . . . . . . . . . Hacks Repelled . | . . . . . . . . . . . Allies | -11 -10 -9 -8 -7 -6 -6 -5 -4 -4 -3 -------- Run | Yrd Mat Mat Mat Fac Fac DSF Fac Fac Ext Res Total Allies 5 | . . . . . . . . . 5 . Largest Group 5 | . . . . . . . . . 5 2 Highest-Rated Group 284 | . . . . . . . . . 284 67 Highest-Rated Ally 159 | . . . . . . . . . 159 38 Total Orders . | . . . . . . . . . . . Ally Attacks 56 | . . . . . . . . . 40 16 Total Damage 1985 | . . . . . . . . . 1567 418 Kills 7 | . . . . . . . . . 5 2 Allies Corrupted 2 | . . . . . . . . . . 2 Allies Melted . | . . . . . . . . . . . Intel | -11 -10 -9 -8 -7 -6 -6 -5 -4 -4 -3 ------- Run | Yrd Mat Mat Mat Fac Fac DSF Fac Fac Ext Res Robot Analysis Total 1 | . . 1 . . . . . . . . Derelict Logs Recovered . | . . . . . . . . . . . Drone Launches . | . . . . . . . . . . . Drone Recoveries . | . . . . . . . . . . . Exploration | -11 -10 -9 -8 -7 -6 -6 -5 -4 -4 -3 ------------- Run | Yrd Mat Mat Mat Fac Fac DSF Fac Fac Ext Res Turns Passed 5119 | 66 339 589 459 964 15 277 715 379 543 773 Spaces Moved 3534 | 46 220 667 376 790 13 96 413 207 333 373 Core 27 | 23 . . . . . 3 . . . 1 Treads . | . . . . . . . . . . . Legs 1890 | 23 220 55 . 225 13 93 413 207 333 308 Wheels . | . . . . . . . . . . . Hover 1617 | . . 612 376 565 . . . . . 64 Flight . | . . . . . . . . . . . Fastest Speed 38 | 50 120 52 40 38 122 122 132 128 128 45 Average Speed 97 | 85 120 57 56 81 122 149 134 129 128 129 Slowest Speed 350 | 120 120 120 100 260 122 250 135 132 128 350 Overloaded Moves . | . . . . . . . . . . . Propulsion Burnouts . | . . . . . . . . . . . Robots Hopped . | . . . . . . . . . . . Cave-ins Triggered . | . . . . . . . . . . . Exploration Rate (%) 29 | 3 56 70 40 24 1 56 13 8 42 10 Regions Visited 10 Branch Regions 1 Pre-discovered Areas . | . . . . . . . . . . . Known Exits Taken 1 | . . . . . 1 . . . . . Unknown Exits Taken 8 | 1 1 1 1 1 . . 1 1 1 . Scrap Searched . | . . . . . . . . . . . Spaces Dug 1 | . . . . . . . . . 1 . Terrain Destroyed 50 | . . . . 19 . . . 28 1 2 Melee . | . . . . . . . . . . . Projectile 5 | . . . . . . . . 2 1 2 AOE 45 | . . . . 19 . . . 26 . . Terrain Rammed . | . . . . . . . . . . . Walls Destroyed . | . . . . . . . . . . . Machines Disabled . | . . . . . . . . . . . Actions | -11 -10 -9 -8 -7 -6 -6 -5 -4 -4 -3 --------- Run | Yrd Mat Mat Mat Fac Fac DSF Fac Fac Ext Res Total 4545 | 65 262 799 528 1021 12 160 505 256 399 538 Wait 305 | 6 16 10 59 145 . . 2 1 32 34 Move 3524 | 45 219 666 375 789 12 95 412 206 332 373 Hop . | . . . . . . . . . . . Pick Up 96 | 5 4 19 11 11 . 9 17 5 3 12 Fast Attach 23 | 1 . 5 . 4 . 3 3 1 1 5 Attach 51 | 4 1 3 6 4 . 8 6 2 1 16 Detach 8 | . . 3 2 . . 1 . . . 2 Swap 61 | . 1 11 13 15 . 1 8 6 3 3 Drop 73 | . 1 17 5 9 . 4 17 7 4 9 Fire 384 | 4 20 63 57 44 . 39 40 28 23 66 Melee 13 | . . . . . . . . . . 13 Ram 5 | . . 2 . . . . . . . 3 Kick 2 | . . . . . . . . . . 2 Crush . | . . . . . . . . . . . Escape Stasis . | . . . . . . . . . . . Rewire . | . . . . . . . . . . . Trap . | . . . . . . . . . . . Miscellaneous . | . . . . . . . . . . . Route ------- -11/Scrapyard -10/Materials (discovered 2 exits: *Mat / [*Min]) -9/Materials (discovered 2 exits: *Mat / [*Min]) -8/Materials -7/Factory -6/Factory -6/DSF -5/Factory -4/Factory -4/Extension -3/Research History --------- Turn | Location | Event 10 | -11/Scrapyard | Discovered new exit (range 16) 67 | -11/Scrapyard | Entered Materials 209 | -10/Materials | Discovered new exit (range 8) 305 | -10/Materials | Build established: Mutant 381 | -10/Materials | Discovered new exit (range 13) 406 | -10/Materials | Entered another Materials area 406 | -9/Materials | Evolved 2 slots: Propulsion x1, Utility x1 792 | -9/Materials | Discovered new exit (range 14) 981 | -9/Materials | Discovered new exit (range 15) 995 | -9/Materials | Entered another Materials area 995 | -8/Materials | Evolved 2 slots: Propulsion x1, Utility x1 1189 | -8/Materials | Garrison activated, responded to threat 1233 | -8/Materials | Met 7R-MNS 1434 | -8/Materials | Discovered new exit (range 15) 1454 | -8/Materials | Entered Factory 1454 | -7/Factory | Evolved 2 slots: Power x1, Propulsion x1 1455 | -7/Factory | Caught up to 7R-MNS 1745 | -7/Factory | Lost 3 parts (1p1n1u) 1985 | -7/Factory | Garrison activated, responded to threat 2408 | -7/Factory | Discovered new exit (range 5) 2418 | -7/Factory | Entered another Factory area 2418 | -6/Factory | Evolved 2 slots: Propulsion x1, Utility x1 2419 | -6/Factory | Caught up to 7R-MNS 2432 | -6/Factory | Identified exit to DSF 2433 | -6/Factory | Entered DSF 2466 | -6/DSF | Additional patrols routed to DSF 2511 | -6/DSF | Discovered new exit (range 16) 2607 | -6/DSF | Lost 4 parts (1p2n1w) 2609 | -6/DSF | Sterilization system engaged 2629 | -6/DSF | Ambient heat levels rising (+10) 2644 | -6/DSF | Ambient heat levels rising (+10) 2659 | -6/DSF | Ambient heat levels rising (+10) 2674 | -6/DSF | Ambient heat levels rising (+10) 2689 | -6/DSF | Ambient heat levels rising (+10) 2704 | -6/DSF | Ambient heat levels rising (+10) 2710 | -6/DSF | Entered Factory 2710 | -5/Factory | Evolved 2 slots: Utility x1, Weapon x1 3091 | -5/Factory | Build established: Hacker-Mutant 3367 | -5/Factory | Discovered new exit (range 6) 3425 | -5/Factory | Entered another Factory area 3425 | -4/Factory | Evolved 2 slots: Propulsion x1, Utility x1 3727 | -4/Factory | Build established: Scavenger-Tank 3799 | -4/Factory | Discovered new exit (range 6) 3804 | -4/Factory | Entered Extension 3886 | -4/Extension | Rescued a captive Derelict 3887 | -4/Extension | Rescued a captive Derelict 3970 | -4/Extension | Rescued a captive Derelict 3993 | -4/Extension | Rescued a captive Derelict 4059 | -4/Extension | Rescued A7 4165 | -4/Extension | Spotted B-86 Titan 4210 | -4/Extension | P-70 Sage assimilated allied QM-QQ6(b) 4219 | -4/Extension | Spotted B-86 Titan 4237 | -4/Extension | Destroyed B-86 Titan 4275 | -4/Extension | Discovered new exit (range 3) 4305 | -4/Extension | Extracted ID and sensor layout for unrecognized location from A7's data core 4347 | -4/Extension | Entered Research 4347 | -3/Research | Accompanied by 2 allies 4347 | -3/Research | Evolved 2 slots: Propulsion x1, Utility x1 4478 | -3/Research | Build established: Scavenger-Gunner 4865 | -3/Research | Spotted B-86 Titan 4937 | -3/Research | System corruption reached 10% 4996 | -3/Research | Lost 17 parts (2p6n6u3w) 5046 | -3/Research | Cargo convoy interrupted 5079 | -3/Research | Core integrity fell below 50% 5113 | -3/Research | Core integrity fell below 20% 5120 | -3/Research | Destroyed by P-80 Master with Gamma Rifle Last Messages --------------- 05111_ Targeting Computer temporarily disabled. 05111_ Slug penetrates Wall. 05111_ Penetrated by Slug. 05111_ Linear Gravjet destroyed. 05112_ Slammed into G-67 Veteran. 05112_ K-01 Serf cleans the Fabricator. 05113_ Penetrated by Slug. 05115_ K-01 Serf cleans the Fabricator. 05115_ Penetrated by Slug. 05115_ Lrg. Storage Unit destroyed. 05115_ Slug penetrates K-01 Serf. 05115_ K-01 Serf destroyed. 05115_ K-01 Serf collects debris. 05116_ Acquired Adv. Phase Shifter. 05117_ System corrupted: Energy discharge (-16). 05118_ K-01 Serf collects debris. 05119_ P-80 Master resets H-77 Assassin, system corruption cleaned. 05119_ Slug penetrates Fabricator. 05119_ Slug penetrates K-01 Serf. 05119_ Adv. Phase Shifter destroyed. Map ----- +----------------------------------------------------+ | ?????????????????????? ?????????? ???????????? | | ?????????????????????? ??????????# ??????????? | | ?????????????????????? ??????????# "??????????? | | ?????????????????????? ??????????# """????????? | | ?????????????????????? #?????????# """????????? | | ?????????????????????? #?????????# ????????? | | ?????????????????????? #?????????# ?????????? | | ?????????????????????? #?????????# ?? #???? | | ??????????????????????# #?????????# """ #???? | | ??????????????????????# #?????????# """" #???? | | ??????????????????????# #????????## """" #???? | | ??????????????????????# #????????# """ ##### | | ??????????????????????# #????????# | | ??????????????????????# #???###### * | | ??????????????????????# #???#"""#" % #???? | | ??????????????????????# #???#"Y"## R ########???? | | ??????????????????????# #####" "## # ????????? | | ??????????????????????# k# ???????? | | ??????????????????????# g= R + ???????? | | ??????????????????????# %gghhk A # "" ?????? | | ??????????????????????#"""gg p # "" ?????? | | ??????????????????????#""Fk % #? "" ?????? | | ??????????????????????#""!! #?? ?????? | | ??????????????????????#""" #??? ????? | | ??????????????????????#""" !!!#???###????? | | ??????????????????????# @ !! #??? #?????? | | ??????????????????????# !! #?? #?????? | | ??????????????????????# #?? ##????? | | ??????????????????????#!!! #? + ????? | | ??????????????????#####!!! #? # ????? | | ???????????????? !!! # # #???? | | ???????????????? # # #???? | | ?????????????????###### k # !# #???? | | ??????????????????????# # # #???? | | ??????????????????????###+##### # % ###### #???? | | ??????????????????????????????# # % ##???# #???? | | ??????????????????????????????#### ###### #???? | | ?????????????????????????????????# #???? | | ?????????????????????????????????# ###### #???? | | ?????????????????????????????????# ##???# #???? | | ?????????????????????????????????# # ??# #???? | | ?????????????????????????????????# # ??# #???? | | ?????????????????????????????????# # ?# #???? | | ?????????????????????????????????# # ?# #???? | | ?????????????????????????????????# # # #???? | | ?????????????????????????????????# # # #???? | | ?????????????????????????????????# # + #???? | | ?????????????????????????????????# # # #???? | | ?????????????????????????????????# ###### #???? | | ?????????????????????????????????# #???? | +----------------------------------------------------+ Best States ------------- Heat Dissipation 77 Energy Generation 37 Energy Capacity 1315 Matter Stores 300 Matter Capacity 400 Sight Range 16 Terrain Scan Density 10 Power Amplification 20 Additional Mass Support 9 Base Temperature (-) 100 Armor Coverage 225 Resistance: KI 20 Resistance: TH 20 Resistance: EX 20 Resistance: EM 20 Resistance: I 20 Resistance: S 20 Resistance: P 20 Evasion (%) 57 Targeting Accuracy 5 Kinecelleration 30 Offensive Hacking 10 Defensive Hacking 10 Item Schematics ----------------- Imp. Hover Unit | -9/Materials | Scanalyzed Arm. Leg | -7/Factory | Hacked Drone Bay | -7/Factory | Hacked Adv. Weight Redist. System | -7/Factory | Scanalyzed Linear Accelerator | -4/Extension | Hacked Robot Schematics ------------------ None Fabricated ------------ Nothing Alien Tech Used ----------------- None Achievements -------------- None Challenges ------------ None Game ------ Seed ColdVoltaicActivator Manual? 0 Play Time 01:21:00 Cumulative 264.9 hours Start 2024.12.14 @ 05:24:00 End 2024.12.14 @ 06:55:18 Sessions 1 Manual Loads 0 Difficulty Adventurer Special Mode None Game No. 204 Rogue 0 Adventurer 141 Explorer 63 Win Type - Total 0 Types 0/0/0/0/0/0/0/0/0 Lore% 35 Gallery% 61 Achievement% 51 Wizard Run 0 Options --------- Layout 0 ASCII 0 Keyboard 0 Movement Mouse Keybinds 0 Fullscreen 1 Font 24/Smallcaps Map View 76x50 Zoom Use 0% Tactical HUD 1 Map Filters NONE Filters NONE Steam 1 RUN: 38a8bc7e-2a4f-4522-9f19-c79a35840d36